fUST/lending_fUST_20240617
["ID","MTS","AMOUNT","RATE_DAILY","PERIOD"]
[329672620,1718561461682,-1433.7,0.000152,2]
[329672621,1718561461715,-671.31,0.000152,2]
[329672622,1718561461742,-198.87213621,0.000152,2]
[329672623,1718561461761,-500.0,0.000152,2]
[329672624,1718561461785,-500.0,0.000152,2]
[329672625,1718561461805,-512.40716329,0.000152,2]
[329672626,1718561461819,-649.59,0.000152,2]
[329672627,1718561461833,-500.0,0.000152,2]
[329672628,1718561461861,-703.71,0.000152,2]
[329672629,1718561461876,-777.49,0.000152,2]
[329672630,1718561461896,-500.0,0.000152,2]
[329672631,1718561461911,-500.0,0.000152,2]
[329672632,1718561461924,-520.69185445,0.000152,2]
[329672633,1718561461937,-500.0,0.000152,2]
[329672634,1718561461953,-710.88,0.000152,2]
[329672635,1718561461965,-500.0,0.00015202,2]
[329672636,1718561461984,-350.77651321,0.00015202,2]
[329672637,1718561461998,-500.0,0.00015202,2]
[329672638,1718561462021,-590.99,0.00015202,4]
[329672639,1718561462033,-250.0,0.00015202,2]
[329672640,1718561462048,-500.0,0.00015202,2]
[329672641,1718561462063,-500.0,0.00015202,2]
[329672642,1718561462079,-500.0,0.00015202,2]
[329672643,1718561462108,-609.4,0.00015202,2]
[329672644,1718561462120,-500.0,0.00015202,2]
[329672645,1718561462133,-500.0,0.00015202,2]
[329672646,1718561462147,-500.0,0.00015202,2]
[329672647,1718561462181,-516.29140879,0.00015202,2]
[329672648,1718561462192,-231.172,0.0001521,2]
[329672649,1718561462203,-1693.35092577,0.00015212,2]
[329672650,1718561462218,-154.018,0.00015236,2]
[329672651,1718561462230,-625.393,0.00015236,2]
[329672652,1718561462245,-164.829,0.00015236,2]
[329672653,1718561462260,-155.06920568,0.00015404,2]
[329672654,1718561462272,-1190.54,0.00015472,2]
[329672655,1718561462298,-500.0,0.00015473,2]
[329672656,1718561462331,-666.34,0.00015473,2]
[329672657,1718561462365,-20597.87,0.00015473,2]
[329672658,1718561462380,-1471.45,0.00015473,2]
[329672659,1718561462391,-3878.38,0.00015473,2]
[329672660,1718561462411,-500.0,0.00015473,2]
[329672661,1718561462429,-2427.47,0.00015473,2]
[329672662,1718561462439,-500.0,0.00015473,2]
[329672663,1718561462477,-1955.63,0.00015473,2]
[329672664,1718561462488,-500.0,0.00015473,2]
[329672665,1718561462509,-976.74,0.00015473,2]
[329672666,1718561462548,-500.0,0.00015473,2]
[329672667,1718561462609,-500.0,0.00015473,2]
[329672668,1718561462620,-1190.54,0.00015473,2]
[329672669,1718561462632,-2521.38,0.00015473,2]
[329672670,1718561462785,-10237.56,0.00015473,2]
[329672671,1718561462798,-805.52,0.00015473,2]
[329672672,1718561462818,-1283.19,0.00015473,2]
[329672673,1718561462831,-998.53,0.00015473,2]
[329672674,1718561462856,-500.0,0.00015474,2]
[329672675,1718561462884,-500.0,0.00015474,2]
[329672676,1718561462910,-500.0,0.00015474,2]
[329672677,1718561462924,-500.0,0.00015474,2]
[329672678,1718561462938,-500.0,0.00015474,2]
[329672679,1718561462954,-665.39,0.00015474,2]
[329672680,1718561462966,-500.0,0.00015474,2]
[329672681,1718561462980,-942.32,0.00015474,2]
[329672682,1718561462996,-500.0,0.00015474,2]
[329672683,1718561463016,-501.41224612,0.00015474,2]
[329672684,1718561463027,-500.0,0.00015474,2]
[329672685,1718561463049,-500.0,0.00015474,2]
[329672686,1718561463067,-894.5,0.00015474,2]
[329672687,1718561463079,-1464.27,0.00015474,2]
[329672688,1718561463094,-500.0,0.00015474,2]
[329672689,1718561463105,-6529.57,0.00015474,2]
[329672690,1718561463116,-413.03018777,0.00015474,2]
[329672691,1718561463127,-810.44,0.00015474,2]
[329672692,1718561463140,-500.0,0.00015474,2]
[329672693,1718561463151,-1433.7,0.00015474,2]
[329672694,1718561463169,-671.31,0.00015474,2]
[329672695,1718561463182,-500.0,0.00015474,2]
[329672696,1718561463198,-500.0,0.00015474,2]
[329672697,1718561463212,-649.59,0.00015474,2]
[329672698,1718561463224,-500.0,0.00015474,2]
[329672699,1718561463234,-703.71,0.00015474,2]
[329672700,1718561463260,-777.49,0.00015474,2]
[329672701,1718561463289,-500.0,0.00015474,2]
[329672702,1718561463340,-500.0,0.00015474,2]
[329672703,1718561463363,-500.0,0.00015474,2]
[329672704,1718561463374,-710.88,0.00015474,2]
[329672705,1718561463405,-1190.54,0.00015475,2]
[329672706,1718561463432,-500.0,0.00015476,2]
[329672707,1718561463480,-500.0,0.00015476,2]
[329672708,1718561463552,-590.99,0.00015476,4]
[329672709,1718561463581,-250.0,0.00015476,2]
[329672710,1718561463594,-500.0,0.00015476,2]
[329672711,1718561463615,-379.83034398,0.00015476,2]
[329672712,1718561463633,-500.0,0.00015476,2]
[329672713,1718561463643,-609.4,0.00015476,2]
[329672714,1718561463668,-500.0,0.00015476,2]
[329672715,1718561463681,-500.0,0.00015476,2]
[329672716,1718561463692,-500.0,0.00015476,2]
[329672717,1718561463720,-281.1,0.00015479,2]
[329672718,1718561463750,-600.0,0.00015484,2]
[329672719,1718561463765,-160.0,0.00015488,2]
[329672720,1718561463778,-489.71560063,0.000156,2]
[329672721,1718561463792,-155.15797667,0.00015618,2]
[329672722,1718561463823,-600.0,0.00015645,2]
[329672723,1718561463856,-155.08600003,0.00015719,2]
[329672724,1718561463890,-155.69097917,0.0001572,2]
[329672725,1718561463936,-500.0,0.00015747,2]
[329672726,1718561463953,-666.34,0.00015747,2]
[329672727,1718561463964,-20597.87,0.00015747,2]
[329672728,1718561463975,-1471.45,0.00015747,2]
[329672729,1718561463991,-3878.38,0.00015747,2]
[329672730,1718561464007,-500.0,0.00015747,2]
[329672731,1718561464026,-2427.47,0.00015747,2]
[329672732,1718561464038,-500.0,0.00015747,2]
[329672733,1718561464055,-1955.63,0.00015747,2]
[329672734,1718561464080,-500.0,0.00015747,2]
[329672735,1718561464093,-976.74,0.00015747,2]
[329672736,1718561464105,-449.60418061,0.00015747,2]
[329672737,1718561464119,-500.0,0.00015747,2]
[329672738,1718561464145,-1190.54,0.00015747,2]
[329672739,1718561464156,-1190.54,0.00015747,2]
[329672740,1718561464170,-1190.54,0.00015747,2]
[329672741,1718561464184,-1190.54,0.00015747,2]
[329672742,1718561464201,-1190.65111841,0.00015747,2]
[329672743,1718561464213,-2521.38,0.00015747,2]
[329672744,1718561464226,-10237.56,0.00015747,2]
[329672745,1718561464237,-805.52,0.00015747,2]
[329672746,1718561464260,-1283.19,0.00015747,2]
[329672747,1718561464272,-998.53,0.00015747,2]
[329672748,1718561464292,-500.0,0.00015748,2]
[329672749,1718561464328,-500.0,0.00015748,2]
[329672750,1718561464340,-500.0,0.00015748,2]
[329672751,1718561464372,-500.0,0.00015748,2]
[329672752,1718561464400,-500.0,0.00015748,2]
[329672753,1718561464417,-665.39,0.00015748,2]
[329672754,1718561464428,-500.0,0.00015748,2]
[329672755,1718561464447,-942.32,0.00015748,2]
[329672756,1718561464480,-500.0,0.00015748,2]
[329672757,1718561464493,-500.0,0.00015748,2]
[329672758,1718561464509,-500.0,0.00015748,2]
[329672759,1718561464520,-894.5,0.00015748,2]
[329672760,1718561464531,-1464.27,0.00015748,2]
[329672761,1718561464543,-500.0,0.00015748,2]
[329672762,1718561464562,-6529.57,0.00015748,2]
[329672763,1718561464575,-810.44,0.00015748,2]
[329672764,1718561464586,-500.0,0.00015748,2]
[329672765,1718561464597,-1433.7,0.00015748,2]
[329672766,1718561464608,-671.31,0.00015748,2]
[329672767,1718561464622,-500.0,0.00015748,2]
[329672768,1718561464634,-649.59,0.00015748,2]
[329672769,1718561464646,-500.0,0.00015748,2]
[329672770,1718561464668,-703.71,0.00015748,2]
[329672771,1718561464682,-777.49,0.00015748,2]
[329672772,1718561464693,-500.0,0.00015748,2]
[329672773,1718561464703,-500.0,0.00015748,2]
[329672774,1718561464728,-473.09123127,0.00015748,2]
[329672775,1718561464738,-500.0,0.0001575,2]
[329672776,1718561464749,-500.0,0.0001575,2]
[329672777,1718561464760,-590.99,0.0001575,4]
[329672778,1718561464808,-250.0,0.0001575,2]
[329672779,1718561464825,-500.0,0.0001575,2]
[329672780,1718561464864,-500.0,0.0001575,2]
[329672781,1718561464876,-609.4,0.0001575,2]
[329672782,1718561464888,-505.36323826,0.0001575,2]
[329672783,1718561464900,-500.0,0.0001575,2]
[329672784,1718561464911,-248.79185095,0.0001575,2]
[329672785,1718561464925,-20.05719839,0.00015794,2]
[329672786,1718561465057,-710.88,0.00015748,2]
[329672787,1718561465068,-261.04280161,0.00015794,2]
[329672788,1718561465080,-600.0,0.00015806,2]
[329672789,1718561465101,-155.12966451,0.00015925,2]
[329672790,1718561465112,-779.98359569,0.00015925,2]
[329672791,1718561465135,-605.40450564,0.00015968,2]
[329672792,1718561465151,-909.77517442,0.00015998,2]
[329672793,1718561465165,-500.0,0.00016,2]
[329672794,1718561465178,-1000.0,0.00016,7]
[329672795,1718561465201,-2157.69787551,0.00016,2]
[329672796,1718561465211,-500.0,0.00016021,2]
[329672797,1718561465224,-666.34,0.00016021,2]
[329672798,1718561465236,-20597.87,0.00016021,2]
[329672799,1718561465254,-1471.45,0.00016021,2]
[329672800,1718561465265,-3878.38,0.00016021,2]
[329672801,1718561465295,-500.0,0.00016021,2]
[329672802,1718561465311,-992.88181301,0.00016021,2]
[329672803,1718561465391,-878.42385116,0.00016021,2]
[329672804,1718561465409,-556.16433583,0.00016021,2]
[329672805,1718561465423,-500.0,0.00016021,2]
[329672806,1718561465434,-1415.51572445,0.00016021,2]
[329672807,1718561465452,-540.11427555,0.00016021,2]
[329672808,1718561465468,-500.0,0.00016021,2]
[329672809,1718561465484,-976.74,0.00016021,2]
[329672810,1718561465501,-412.96,0.00016021,2]
[329672811,1718561465517,-1152.02316466,0.00016021,2]
[329672812,1718561465542,-953.23570508,0.00016021,2]
[329673013,1718562634591,-287.0,0.00013067,2]
[329673015,1718562634604,-2212.62679063,0.00013068,2]
[329673016,1718562634618,-771.35056496,0.00013068,2]
[329673129,1718562640598,-1538.7419853,0.00013068,2]
[329673207,1718562647194,-1167.25256915,0.00013068,2]
[329673210,1718562647400,-2945.29375419,0.00013068,2]
[329673211,1718562647448,-4625.93287734,0.00013068,2]
[329673212,1718562647464,-7318.12437424,0.00013068,2]
[329673213,1718562647485,-791.02502001,0.00013068,2]
[329673214,1718562647500,-3519.65206418,0.00013068,2]
[329673215,1718562647512,-201.53716617,0.00014,2]
[329673216,1718562647524,-1000.0,0.00014,6]
[329673217,1718562647537,-743.76436489,0.00014,2]
[329673218,1718562647552,-201.53716614,0.00014069,2]
[329673219,1718562647564,-500.0,0.00014099,2]
[329673220,1718562647578,-500.0,0.00014099,2]
[329673221,1718562647590,-500.0,0.00014099,2]
[329673222,1718562647606,-500.0,0.00014099,2]
[329673223,1718562647626,-716.41,0.000141,2]
[329673224,1718562647639,-2980.66,0.000141,2]
[329673225,1718562647656,-853.12,0.000141,2]
[329673226,1718562647669,-590.06,0.000141,2]
[329673227,1718562647680,-500.0,0.000141,2]
[329673228,1718562647691,-151.02911923,0.000141,2]
[329673229,1718562647703,-377.73,0.000141,2]
[329673230,1718562647721,-943.48398345,0.000141,2]
[329673231,1718562647739,-16660.80601655,0.000141,2]
[329673232,1718562647766,-1326.23,0.000141,2]
[329673233,1718562647779,-3313.02,0.000141,2]
[329673234,1718562647792,-500.0,0.000141,2]
[329673235,1718562647803,-6832.9,0.000141,2]
[329673236,1718562647814,-261.17893482,0.000141,2]
[329673237,1718562647829,-500.0,0.000141,2]
[329673238,1718562647857,-500.0,0.000141,2]
[329673239,1718562647869,-500.0,0.000141,2]
[329673240,1718562647889,-500.0,0.000141,2]
[329673241,1718562647922,-1866.44,0.000141,2]
[329673242,1718562647957,-500.0,0.000141,2]
[329673243,1718562647969,-500.0,0.000141,2]
[329673244,1718562647980,-500.0,0.000141,2]
[329673245,1718562647991,-1642.67,0.000141,2]
[329673246,1718562648005,-500.0,0.000141,2]
[329673247,1718562648016,-401.47,0.000141,2]
[329673249,1718562648034,-952.02,0.000141,2]
[329673251,1718562648048,-500.0,0.000141,2]
[329673252,1718562648063,-353.52069219,0.000141,2]
[329673253,1718562648077,-157.00483935,0.00014101,2]
[329673255,1718562648089,-500.0,0.00014101,2]
[329673256,1718562648105,-500.0,0.00014101,2]
[329673257,1718562648121,-500.0,0.00014101,2]
[329673258,1718562648144,-500.0,0.00014101,2]
[329673259,1718562648166,-500.0,0.00014101,2]
[329673260,1718562648180,-596.32,0.00014101,2]
[329673261,1718562648195,-500.0,0.00014101,2]
[329673262,1718562648208,-792.48,0.00014101,2]
[329673263,1718562648229,-500.0,0.00014101,2]
[329673264,1718562648240,-500.0,0.00014101,2]
[329673265,1718562648256,-500.0,0.00014101,2]
[329673266,1718562648268,-500.0,0.00014101,2]
[329673267,1718562648279,-500.0,0.00014101,2]
[329673268,1718562648308,-500.0,0.00014101,2]
[329673269,1718562648327,-758.61,0.00014101,2]
[329673270,1718562648347,-1204.43,0.00014101,2]
[329673271,1718562648360,-500.0,0.00014101,2]
[329673272,1718562648374,-12323.36,0.00014101,2]
[329673273,1718562648392,-500.0,0.00014101,2]
[329673274,1718562648413,-500.0,0.00014101,2]
[329673275,1718562648424,-600.51,0.00014101,2]
[329673276,1718562648438,-2296.63,0.00014101,2]
[329673277,1718562648451,-500.0,0.00014101,2]
[329673278,1718562648465,-500.0,0.00014101,2]
[329673279,1718562648481,-500.0,0.00014101,2]
[329673280,1718562648492,-494.94800557,0.00014101,2]
[329673281,1718562648511,-5.05199443,0.00014101,2]
[329673282,1718562648532,-5625.98,0.00014101,2]
[329673283,1718562648543,-585.12,0.00014101,2]
[329673284,1718562648556,-500.0,0.00014101,2]
[329673285,1718562648568,-574.06,0.00014101,2]
[329673286,1718562648579,-619.41,0.00014101,2]
[329673287,1718562648591,-500.0,0.00014101,2]
[329673288,1718562648604,-500.0,0.00014101,2]
[329673289,1718562648626,-628.54,0.00014101,2]
[329673290,1718562648638,-623.46,0.00014101,2]
[329673291,1718562648664,-500.0,0.00014102,2]
[329673292,1718562648705,-500.0,0.00014102,2]
[329673293,1718562648717,-500.0,0.00014102,2]
[329673294,1718562648750,-500.0,0.00014102,2]
[329673295,1718562648771,-461.2145156,0.00014102,2]
[329673296,1718562648783,-500.0,0.00014102,2]
[329673297,1718562648796,-500.0,0.00014102,2]
[329673298,1718562648808,-500.0,0.00014102,2]
[329673299,1718562648824,-500.0,0.00014102,2]
[329673300,1718562648835,-500.0,0.00014102,2]
[329673301,1718562648846,-1168.77,0.00014102,2]
[329673302,1718562648864,-501.82,0.00014102,2]
[329673303,1718562648880,-500.0,0.00014102,2]
[329673304,1718562648907,-407.20166344,0.00014102,2]
[329673305,1718562648921,-250.0,0.00014102,2]
[329673306,1718562648934,-626.95,0.00014102,4]
[329673307,1718562648948,-500.0,0.00014102,2]
[329673308,1718562648960,-500.0,0.00014102,2]
[329673309,1718562648985,-556.66,0.00014102,2]
[329673310,1718562649000,-500.0,0.00014102,2]
[329673311,1718562649020,-201.53716614,0.00014138,2]
[329673312,1718562649048,-201.53716614,0.00014206,2]
[329673313,1718562649096,-201.53716614,0.00014275,2]
[329673314,1718562649110,-1527.3,0.00014369,2]
[329673315,1718562649122,-500.0,0.00014373,2]
[329673316,1718562649136,-500.0,0.00014373,2]
[329673317,1718562649147,-716.41,0.00014374,2]
[329673318,1718562649158,-2980.66,0.00014374,2]
[329673319,1718562649170,-853.12,0.00014374,2]
[329673320,1718562649181,-590.06,0.00014374,2]
[329673321,1718562649192,-500.0,0.00014374,2]
[329673322,1718562649204,-17604.29,0.00014374,2]
[329673323,1718562649220,-1326.23,0.00014374,2]
[329673324,1718562649239,-3313.02,0.00014374,2]
[329673325,1718562649259,-500.0,0.00014374,2]
[329673326,1718562649271,-6832.9,0.00014374,2]
[329673327,1718562649284,-500.0,0.00014374,2]
[329673328,1718562649294,-500.0,0.00014374,2]
[329673329,1718562649309,-500.0,0.00014374,2]
[329673330,1718562649332,-500.0,0.00014374,2]
[329673331,1718562649350,-1866.44,0.00014374,2]
[329673332,1718562649362,-500.0,0.00014374,2]
[329673333,1718562649384,-500.0,0.00014374,2]
[329673334,1718562649396,-500.0,0.00014374,2]
[329673335,1718562649409,-1642.67,0.00014374,2]
[329673336,1718562649421,-952.02,0.00014374,2]
[329673337,1718562649431,-500.0,0.00014374,2]
[329673338,1718562649448,-500.0,0.00014375,2]
[329673339,1718562649458,-500.0,0.00014375,2]
[329673340,1718562649470,-500.0,0.00014375,2]
[329673341,1718562649485,-500.0,0.00014375,2]
[329673342,1718562649500,-500.0,0.00014375,2]
[329673343,1718562649541,-596.32,0.00014375,2]
[329673344,1718562649556,-500.0,0.00014375,2]
[329673345,1718562649570,-792.48,0.00014375,2]
[329673346,1718562649582,-500.0,0.00014375,2]
[329673347,1718562649595,-500.0,0.00014375,2]
[329673348,1718562649609,-500.0,0.00014375,2]
[329673349,1718562649623,-500.0,0.00014375,2]
[329673350,1718562649640,-500.0,0.00014375,2]
[329673351,1718562649656,-500.0,0.00014375,2]
[329673352,1718562649670,-758.61,0.00014375,2]
[329673353,1718562649682,-1204.43,0.00014375,2]
[329673354,1718562649697,-500.0,0.00014375,2]
[329673355,1718562649708,-12323.36,0.00014375,2]
[329673356,1718562649730,-500.0,0.00014375,2]
[329673357,1718562649751,-500.0,0.00014375,2]
[329673358,1718562649763,-600.51,0.00014375,2]
[329673359,1718562649774,-2296.63,0.00014375,2]
[329673360,1718562649791,-500.0,0.00014375,2]
[329673361,1718562649804,-500.0,0.00014375,2]
[329673362,1718562649820,-500.0,0.00014375,2]
[329673363,1718562649846,-500.0,0.00014375,2]
[329673364,1718562649864,-5625.98,0.00014375,2]
[329673365,1718562649908,-585.12,0.00014375,2]
[329673366,1718562649929,-500.0,0.00014375,2]
[329673367,1718562649948,-574.06,0.00014375,2]
[329673368,1718562649984,-619.41,0.00014375,2]
[329673369,1718562649998,-500.0,0.00014375,2]
[329673370,1718562650013,-500.0,0.00014375,2]
[329673371,1718562650038,-628.54,0.00014375,2]
[329673372,1718562650052,-623.46,0.00014375,2]
[329673373,1718562650064,-500.0,0.00014376,2]
[329673374,1718562650076,-500.0,0.00014376,2]
[329673375,1718562650091,-637.2096401,0.00014376,2]
[329673376,1718562650103,-500.0,0.00014376,2]
[329673377,1718562650118,-500.0,0.00014376,2]
[329673378,1718562650148,-500.0,0.00014376,2]
[329673379,1718562650168,-500.0,0.00014376,2]
[329673380,1718562650182,-500.0,0.00014376,2]
[329673381,1718562650194,-500.0,0.00014376,2]
[329673382,1718562650208,-1168.77,0.00014376,2]
[329673383,1718562650219,-500.0,0.00014376,2]
[329673384,1718562650238,-250.0,0.00014376,2]
[329673385,1718562650251,-626.95,0.00014376,4]
[329673386,1718562650281,-500.0,0.00014376,2]
[329673387,1718562650293,-500.0,0.00014376,2]
[329673388,1718562650305,-556.66,0.00014376,2]
[329673389,1718562650319,-500.0,0.00014376,2]
[329673390,1718562650330,-500.0,0.00014647,2]
[329673391,1718562650348,-500.0,0.00014647,2]
[329673392,1718562650360,-716.41,0.00014648,2]
[329673393,1718562650371,-2980.66,0.00014648,2]
[329673394,1718562650383,-853.12,0.00014648,2]
[329673395,1718562650398,-590.06,0.00014648,2]
[329673396,1718562650419,-500.0,0.00014648,2]
[329673397,1718562650430,-17604.29,0.00014648,2]
[329673398,1718562650460,-1326.23,0.00014648,2]
[329673399,1718562650472,-3313.02,0.00014648,2]
[329673400,1718562650487,-500.0,0.00014648,2]
[329673401,1718562650501,-6832.9,0.00014648,2]
[329673402,1718562650529,-500.0,0.00014648,2]
[329673403,1718562650540,-500.0,0.00014648,2]
[329673404,1718562650555,-500.0,0.00014648,2]
[329673405,1718562650569,-500.0,0.00014648,2]
[329673406,1718562650585,-1866.44,0.00014648,2]
[329673407,1718562650598,-500.0,0.00014648,2]
[329673408,1718562650617,-500.0,0.00014648,2]
[329673409,1718562650630,-500.0,0.00014648,2]
[329673410,1718562650656,-310.09148263,0.00014648,2]
[329673411,1718562650672,-508.635,0.00014648,2]
[329673412,1718562650686,-823.94351737,0.00014648,2]
[329673413,1718562650697,-884.64824795,0.00014648,2]
[329673414,1718562650724,-67.37175205,0.00014648,2]
[329673415,1718562650748,-500.0,0.00014648,2]
[329673416,1718562650760,-500.0,0.00014649,2]
[329673417,1718562650776,-192.04370772,0.00014649,2]
[329673418,1718562650807,-307.95629228,0.00014649,2]
[329673419,1718562650829,-500.0,0.00014649,2]
[329673420,1718562650860,-500.0,0.00014649,2]
[329673421,1718562650878,-500.0,0.00014649,2]
[329673422,1718562650905,-596.32,0.00014649,2]
[329673423,1718562650919,-500.0,0.00014649,2]
[329673424,1718562650933,-792.48,0.00014649,2]
[329673425,1718562650956,-500.0,0.00014649,2]
[329673426,1718562650977,-500.0,0.00014649,2]
[329673427,1718562650989,-500.0,0.00014649,2]
[329673428,1718562651006,-500.0,0.00014649,2]
[329673429,1718562651022,-42.53050634,0.00014649,2]
[329673430,1718562651050,-457.46949366,0.00014649,2]
[329673431,1718562651064,-758.61,0.00014649,2]
[329673432,1718562651083,-1204.43,0.00014649,2]
[329673433,1718562651094,-500.0,0.00014649,2]
[329673434,1718562651108,-12323.36,0.00014649,2]
[329673435,1718562651123,-438.52657256,0.00014649,2]
[329673436,1718562651144,-500.0,0.00014649,2]
[329673437,1718562651163,-600.51,0.00014649,2]
[329673438,1718562651183,-2296.63,0.00014649,2]
[329673439,1718562651196,-500.0,0.00014649,2]
[329673440,1718562651212,-500.0,0.00014649,2]
[329673441,1718562651232,-500.0,0.00014649,2]
[329673442,1718562651254,-500.0,0.00014649,2]
[329673443,1718562651266,-5625.98,0.00014649,2]
[329673444,1718562651282,-585.12,0.00014649,2]
[329673445,1718562651309,-500.0,0.00014649,2]
[329673446,1718562651333,-574.06,0.00014649,2]
[329673447,1718562651358,-619.41,0.00014649,2]
[329673448,1718562651382,-500.0,0.00014649,2]
[329673449,1718562651393,-151.0,0.00014649,2]
[329673450,1718562651404,-199.52275779,0.00014649,2]
[329673451,1718562651420,-628.54,0.00014649,2]
[329673452,1718562651443,-623.46,0.00014649,2]
[329673453,1718562651458,-151.0,0.00014649,2]
[329673454,1718562651472,-500.0,0.0001465,2]
[329673455,1718562651487,-500.0,0.0001465,2]
[329673456,1718562651513,-500.0,0.0001465,2]
[329673457,1718562651527,-500.0,0.0001465,2]
[329673458,1718562651542,-500.0,0.0001465,2]
[329673459,1718562651570,-500.0,0.0001465,2]
[329673460,1718562651601,-151.0,0.0001465,2]
[329673461,1718562651613,-1168.77,0.0001465,2]
[329673462,1718562651625,-151.0,0.0001465,2]
[329673463,1718562651637,-500.0,0.0001465,2]
[329673464,1718562651651,-151.0,0.0001465,2]
[329673465,1718562651667,-151.0,0.0001465,2]
[329673466,1718562651682,-500.0,0.0001465,2]
[329673467,1718562651699,-250.0,0.0001465,2]
[329673468,1718562651717,-626.95,0.0001465,4]
[329673469,1718562651730,-151.0,0.0001465,2]
[329673470,1718562651760,-500.0,0.0001465,2]
[329673471,1718562651776,-500.0,0.0001465,2]
[329673472,1718562651791,-556.66,0.0001465,2]
[329673473,1718562651803,-500.0,0.0001465,2]
[329673474,1718562651817,-151.0,0.0001465,2]
[329673475,1718562651841,-151.0,0.00014699,2]
[329673476,1718562651854,-1527.3,0.00014699,2]
[329673477,1718562651876,-590.78746634,0.00014921,2]
[329673478,1718562651890,-369.82725275,0.00014921,2]
[329673479,1718562651915,-151.0,0.00014922,2]
[329673480,1718562652039,-716.41,0.00014922,2]
[329673481,1718562652050,-2980.66,0.00014922,2]
[329673482,1718562652061,-151.0,0.00014922,2]
[329673483,1718562652083,-853.12,0.00014922,2]
[329673484,1718562652100,-590.06,0.00014922,2]
[329673485,1718562652117,-500.0,0.00014922,2]
[329673486,1718562652143,-17604.29,0.00014922,2]
[329673487,1718562652172,-1326.23,0.00014922,2]
[329673488,1718562652183,-3313.02,0.00014922,2]
[329673489,1718562652195,-500.0,0.00014922,2]
[329673490,1718562652213,-6832.9,0.00014922,2]
[329673491,1718562652228,-500.0,0.00014922,2]
[329673492,1718562652250,-312.09194265,0.00014922,2]
[329673493,1718562652265,-500.0,0.00014922,2]
[329673494,1718562652277,-500.0,0.00014922,2]
[329673495,1718562652290,-1866.44,0.00014922,2]
[329673496,1718562652312,-500.0,0.00014922,2]
[329673497,1718562652326,-500.0,0.00014922,2]
[329673498,1718562652377,-363.18,0.00014922,2]
[329673499,1718562652402,-1642.67,0.00014922,2]
[329673500,1718562652418,-952.02,0.00014922,2]
[329673501,1718562652473,-500.0,0.00014922,2]
[329673502,1718562652512,-500.0,0.00014923,2]
[329673503,1718562652529,-500.0,0.00014923,2]
[329673504,1718562652544,-500.0,0.00014923,2]
[329673505,1718562652566,-500.0,0.00014923,2]
[329673506,1718562652586,-500.0,0.00014923,2]
[329673507,1718562652599,-596.32,0.00014923,2]
[329673508,1718562652627,-500.0,0.00014923,2]
[329673509,1718562652640,-792.48,0.00014923,2]
[329673510,1718562652664,-500.0,0.00014923,2]
[329673511,1718562652676,-500.0,0.00014923,2]
[329673512,1718562652700,-500.0,0.00014923,2]
[329673513,1718562652722,-500.0,0.00014923,2]
[329673514,1718562652743,-500.0,0.00014923,2]